fUST/lending_fUST_20240822
["ID","MTS","AMOUNT","RATE_DAILY","PERIOD"]
[335549620,1724321438547,-500.0,0.00018506,2]
[335549621,1724321438556,-500.0,0.00018506,2]
[335549622,1724321438566,-58305.4819217,0.00018507,2]
[335549623,1724321438575,-150.0,0.00018517,2]
[335549624,1724321438585,-522.0,0.00018517,2]
[335549625,1724321438594,-1416.0,0.00018517,2]
[335549626,1724321438604,-418.953344,0.00018521,2]
[335549627,1724321438613,-481.87008796,0.00018709,2]
[335549628,1724321438623,-5329.36596513,0.00018902,2]
[335549629,1724321438632,-4577.41630556,0.00018957,2]
[335549630,1724321438642,-306.0,0.00018986,2]
[335549631,1724321438652,-953.69627248,0.00018999,2]
[335549632,1724321438661,-1866.70361313,0.00019,2]
[335549633,1724321438671,-1000.0,0.00019,19]
[335549634,1724321438680,-151.0,0.00019,2]
[335549635,1724321438690,-269.4,0.00019001,2]
[335549636,1724321438699,-1672.36760276,0.00019012,2]
[335549637,1724321438709,-172.57817428,0.00019012,2]
[335549638,1724321438719,-201.51075773,0.00019012,2]
[335549639,1724321438728,-65721.92540058,0.00019055,2]
[335549664,1724321440367,-5186.7221408,0.00019055,9]
[335549717,1724321443559,-9530.56392875,0.00019055,9]
[335549734,1724322372500,-300.0,0.00010958,2]
[335549735,1724322372531,-497.57,0.00010959,2]
[335549736,1724322372562,-414.64,0.00010959,2]
[335549737,1724322372590,-345.54,0.00010959,2]
[335549738,1724322372619,-287.95,0.00010959,2]
[335549739,1724322372649,-239.96,0.00010959,2]
[335549740,1724322372921,-199.96,0.00010959,2]
[335549741,1724322372954,-166.64,0.00010959,2]
[335549742,1724322372984,-833.2,0.00010959,2]
[335549743,1724322373013,-5627.09208903,0.00012551,2]
[335549744,1724322373026,-300.0,0.00012551,2]
[335549745,1724322373039,-497.57,0.00012551,2]
[335549746,1724322373051,-414.64,0.00012551,2]
[335549747,1724322373062,-345.54,0.00012551,2]
[335549748,1724322373078,-287.95,0.00012551,2]
[335549749,1724322373089,-239.96,0.00012551,2]
[335549750,1724322373105,-199.96,0.00012551,2]
[335549751,1724322373129,-166.64,0.00012551,2]
[335549752,1724322373141,-833.2,0.00012551,2]
[335549753,1724322373162,-28889.43582194,0.00012551,2]
[335549754,1724322373172,-7082.8600558,0.00012696,2]
[335549755,1724322373184,-1829.69203323,0.000129,2]
[335549756,1724322399050,-157.359412,0.00012209,2]
[335549757,1724322399081,-157.359412,0.00012242,2]
[335549758,1724322399109,-157.359412,0.00012276,2]
[335549759,1724322399140,-157.359412,0.00012309,2]
[335549760,1724322399171,-157.359412,0.00012343,2]
[335549761,1724322399201,-157.359412,0.00012376,2]
[335549762,1724322399230,-157.359412,0.0001241,2]
[335549763,1724322399259,-157.359412,0.00012443,2]
[335549764,1724322399289,-157.359412,0.00012477,2]
[335549765,1724322399318,-157.359412,0.0001251,2]
[335549766,1724322399347,-157.359412,0.00012543,2]
[335549767,1724322399375,-157.359412,0.00012577,2]
[335549768,1724322399404,-157.359412,0.0001261,2]
[335549769,1724322399433,-157.359412,0.00012644,2]
[335549770,1724322399470,-157.359412,0.00012677,2]
[335549771,1724322399498,-157.359412,0.00012711,2]
[335549772,1724322399527,-157.359412,0.00012744,2]
[335549773,1724322399556,-157.359412,0.00012778,2]
[335549774,1724322399585,-157.359412,0.00012811,2]
[335549775,1724322399614,-157.359412,0.00012845,2]
[335549776,1724322399642,-1012.28944455,0.000129,2]
[335549777,1724322399673,-1672.36760276,0.000129,2]
[335549778,1724322399704,-695.0473098,0.00013051,2]
[335549779,1724322399733,-695.0473098,0.00013051,2]
[335549780,1724322399764,-598.30034209,0.00013051,2]
[335549781,1724322399793,-603.98478864,0.00013333,2]
[335549782,1724322399820,-534.91146023,0.00013333,2]
[335549783,1724322399848,-155.03734822,0.00013599,2]
[335549784,1724322399876,-1778.1139228,0.00013697,3]
[335549785,1724322399904,-455.446292,0.00013699,2]
[335549786,1724322401842,27304.53187822,0.00013596,2]
[335549801,1724322616821,-312.74,0.00010959,2]
[335549848,1724322632454,-3222.3315505,0.00013245,2]
[335549851,1724322632465,-16316.65589128,0.00013596,2]
[335549853,1724322632475,-156.82691502,0.00013596,2]
[335549855,1724322632485,-169.1612141,0.00013596,2]
[335549857,1724322632498,-405.4718388,0.00013596,2]
[335549859,1724322632507,-2145.45207588,0.00013596,2]
[335549861,1724322632518,-2113.01506767,0.00013596,2]
[335549863,1724322632529,-1309.31158726,0.00013596,2]
[335549865,1724322632538,-1201.4709989,0.00013596,2]
[335549867,1724322632548,-1043.44440635,0.00013596,2]
[335549869,1724322632558,-629.437648,0.00013697,2]
[335549871,1724322632567,-2712.87069354,0.00013697,2]
[335549873,1724322632577,-1731.5892808,0.00013697,2]
[335549875,1724322632587,-10188.52389522,0.00013697,2]
[335549876,1724322632599,-5810.8852435,0.00013697,2]
[335549908,1724322638393,-42226.09635826,0.00013688,2]
[335549909,1724322638404,-695.0473098,0.00013971,2]
[335549910,1724322638413,-2989.14039968,0.00014245,2]
[335549911,1724322638422,-462.051609,0.00014247,2]
[335549912,1724322638432,-177.263577,0.00014247,2]
[335549913,1724322638441,-270.59863035,0.0001648,2]
[335549914,1724322638451,-997.64976914,0.00016739,2]
[335549915,1724322638460,-1000.0,0.00017,17]
[335549916,1724322638470,-100000.0,0.00017119,2]
[335549917,1724322638479,-309.81589483,0.00017159,2]
[335549918,1724322638488,-500.0,0.00017173,2]
[335549919,1724322638498,-500.0,0.00017173,2]
[335549920,1724322638507,-500.0,0.00017173,2]
[335549922,1724322638516,-241.56691658,0.00017173,2]
[335549924,1724322638526,-72969.3114331,0.00017189,2]
[335549926,1724322638534,-502.50076074,0.000172,2]
[335549927,1724322638544,-72969.3114331,0.00017512,2]
[335549928,1724322638553,-309.81589481,0.00017639,2]
[335549929,1724322638562,-153.0,0.00017753,2]
[335549930,1724322638572,-153.0,0.00017753,2]
[335549931,1724322638581,-1368.0,0.00017978,2]
[335549932,1724322638590,-245.60321334,0.00018,2]
[335549933,1724322638600,-1000.0,0.00018,18]
[335549934,1724322638609,-500.0,0.00018014,2]
[335549935,1724322638618,-306.0,0.00018041,2]
[335549936,1724322638628,-309.81589481,0.00018119,2]
[335549937,1724322638636,-399.118621,0.00018521,2]
[335549938,1724322638646,-415.5966062,0.00018578,2]
[335549939,1724322638655,-247.0,0.00018595,2]
[335549940,1724322638665,-309.81589481,0.00018598,2]
[335549941,1724322638674,-176.0775841,0.00018712,2]
[335549942,1724322638683,-153.0,0.00018712,2]
[335549943,1724322638692,-153.0,0.00018712,2]
[335549944,1724322638701,-153.0,0.00018712,2]
[335549945,1724322638710,-5623.26419453,0.00018745,2]
[335549946,1724322638719,-150.0,0.00018763,2]
[335549947,1724322638729,-1370.7249535,0.00018787,7]
[335549948,1724322638738,-2171.8258659,0.00018889,2]
[335549949,1724322638748,-500.0,0.00018944,2]
[335549950,1724322638760,-369.91551788,0.00018944,2]
[335549951,1724322638769,-500.0,0.00018944,2]
[335549952,1724322638779,-402.09054706,0.00018944,2]
[335549953,1724322638788,-164.29083623,0.00018944,2]
[335549954,1724322638798,-500.0,0.00018944,2]
[335549955,1724322638807,-500.0,0.00018944,2]
[335549956,1724322638817,-500.0,0.00018944,2]
[335549957,1724322638827,-500.0,0.00018944,2]
[335549958,1724322638836,-500.0,0.00018944,2]
[335549959,1724322638845,-500.0,0.00018944,2]
[335549960,1724322638855,-13747.96257891,0.00018945,9]
[335549961,1724322638866,-186560.09152303,0.00018945,2]
[335549962,1724322638876,-68100.96401426,0.00018958,2]
[335549963,1724322639048,-2367.99363741,0.00018958,2]
[335549964,1724322639068,-1346.5,0.00018958,2]
[335550000,1724322640633,-603.98478864,0.00018355,2]
[335550345,1724322643798,-507.37168076,0.00018355,2]
[335550348,1724322643813,-238.5246449,0.00018944,2]
[335550349,1724322643829,-1153.85378143,0.00018958,2]
[335550350,1724322643843,-500.0,0.00018962,2]
[335550351,1724322643855,-519.813009,0.00018968,2]
[335550352,1724322643871,-151.0,0.00018968,2]
[335550353,1724322643886,-519.813009,0.00018968,2]
[335550354,1724322643898,-167.958696,0.00018968,2]
[335550355,1724322643910,-151.0,0.00018968,2]
[335550356,1724322643921,-151.0,0.00018968,2]
[335550357,1724322643933,-151.0,0.00018968,2]
[335550358,1724322643948,-57831.46102966,0.00018968,2]
[335550360,1724322643961,-156.37,0.0001898,3]
[335550362,1724322643972,-48941.62136863,0.0001899,2]
[335550631,1724322646509,-151.0,0.00018968,2]
[335550633,1724322646521,-151.0,0.00018968,2]
[335550635,1724322646531,-296.30034209,0.0001899,2]
[335550639,1724322646562,-5385.09698619,0.0001899,2]
[335550642,1724322646577,-1292.95668837,0.0001899,2]
[335551969,1724322761985,2733.7336231,0.00012,2]
[335551971,1724322780844,1309.31158726,0.00012,2]
[335551972,1724322794533,1043.44440635,0.00012,2]
[335551973,1724322811321,1066.81468192,0.00012,2]
[335551974,1724322812803,3368.0393392,0.00012,2]
[335551975,1724322815543,542.82195101,0.00012,2]
[335551977,1724322857221,-21999.79620265,0.00013688,2]
[335551978,1724322857258,-551.22930624,0.00013971,2]
[335551979,1724322857295,-449.02204913,0.00013971,2]
[335551980,1724322857335,-901.18929888,0.00013971,2]
[335551981,1724322857372,-464.96974698,0.00013971,2]
[335551982,1724322857406,-595.86349725,0.00014245,2]
[335551984,1724322877049,-342.6945234,0.00013971,2]
[335551985,1724322877078,-543.83358768,0.00013971,2]
[335551986,1724322877109,-438.949028,0.00014247,2]
[335551987,1724322877141,-1309.31158726,0.00014545,2]
[335551988,1724322877170,-416.28438755,0.00014545,2]
[335551989,1724322877199,-1110.79438842,0.00015,2]
[335551990,1724322877228,-17408.63017871,0.00017,2]
[335551991,1724322877257,-227.723146,0.00017605,2]
[335551992,1724322877284,-154.77557542,0.00018,2]
[335551993,1724322877316,-226.4,0.00018568,2]
[335551994,1724322877344,-151.0,0.00018968,2]
[335551995,1724322877374,-2633.09600946,0.00018968,2]
[335551997,1724322883854,1309.31158726,0.00012,2]
[335551999,1724322972850,1204.30028644,0.00012,2]
[335552000,1724322991739,-21999.79620265,0.00013971,2]
[335552001,1724322991770,-165.86022108,0.000149,2]
[335552002,1724322991804,-300.0,0.00017265,2]
[335552029,1724323572000,3045.0,0.00012,2]
[335552035,1724323675864,5363.68109423,0.00012,2]
[335552078,1724323832581,-2570.27307121,0.00012551,2]
[335552081,1724323832593,-10405.3647565,0.00012551,2]
[335552130,1724323838681,-9024.15837494,0.00012551,2]
[335552132,1724323838691,-177.263577,0.00014247,2]
[335552134,1724323838701,-417.001576,0.00014247,2]
[335552135,1724323838710,-227.723146,0.00014517,2]
[335552136,1724323838720,-1200.1174081,0.0001565,2]
[335552138,1724323838730,-300.0,0.00015674,2]
[335552140,1724323838740,-3019.01548018,0.00015675,2]
[335552141,1724323838753,-2368.52091969,0.00015675,2]
[335552142,1724323838765,-2698.15092041,0.00015675,2]
[335552143,1724323838838,-5419.44305042,0.00015675,2]
[335552144,1724323838848,-154.80182109,0.00016,2]
[335552145,1724323838858,-1859.6829817,0.00016293,2]
[335552146,1724323838868,-19609.22682129,0.00016501,2]
[335552493,1724323843726,-4614.63756991,0.00016501,2]
[335552495,1724323843738,-1000.0,0.00017,17]
[335552498,1724323843751,-420.0,0.00017242,2]
[335552500,1724323843762,-777.53091858,0.00017909,2]
[335552502,1724323843773,-1000.0,0.00018,18]
[335552504,1724323843783,-379.16269,0.00018521,2]
[335552506,1724323843792,-226.4,0.00018561,2]
[335552508,1724323843802,-2640.95997503,0.00018612,2]
[335552510,1724323843812,-3741.06,0.000188,2]
[335552513,1724323843824,-480.62654593,0.00018804,2]
[335552515,1724323843833,-1061.90968303,0.00018843,2]
[335552519,1724323843868,-4561.3545115,0.00018843,2]
[335552521,1724323843879,-170.50796341,0.00018868,2]
[335552523,1724323843889,-2000.0,0.00018868,2]
[335552525,1724323843899,-170.50796339,0.00018921,2]
[335552528,1724323843910,-156.37,0.00018948,3]
[335552530,1724323843921,-500.0,0.00018957,2]
[335552532,1724323843932,-500.0,0.00018957,2]
[335552534,1724323843943,-594.41965916,0.00018957,2]
[335552536,1724323843954,-30211.65028726,0.00018958,2]
[335552540,1724323843979,-23721.07755669,0.00018958,2]
[335553031,1724324063621,150.0,0.00012,2]
[335553032,1724324094296,-6309.08720368,0.00040673,120]
[335553033,1724324094326,-24162.75880368,0.00040673,120]
[335553034,1724324094358,-15115.75594499,0.00040673,120]
[335553035,1724324094388,-15985.07639678,0.00040673,120]
[335553036,1724324094418,-55175.0275615,0.00040673,120]
[335553037,1724324094451,-15503.70745001,0.00040673,120]
[335553038,1724324094486,-25341.5485915,0.00040673,120]
[335553039,1724324094518,-13667.46494638,0.00040673,120]
[335553040,1724324094550,-5000.0,0.00040673,120]
[335553041,1724324094582,-13798.25602535,0.00040673,120]
[335553042,1724324094612,-17103.95271867,0.00040673,120]
[335553043,1724324094643,-26529.53265293,0.00040673,120]
[335553044,1724324094674,-109613.04638125,0.00040673,120]
[335553045,1724324094703,-488.38,0.00040673,10]
[335553046,1724324094732,-197.91882765,0.00040673,120]
[335553047,1724324094762,-200000.0,0.00040673,20]
[335553048,1724324094794,-1215.52685703,0.00040673,14]
[335553049,1724324094823,-10973.3457248,0.00040673,120]
[335553050,1724324094853,-180476.75883854,0.00040673,120]
[335553051,1724324094883,-150.0,0.00040673,14]
[335553052,1724324094916,-150.0,0.00040673,14]
[335553053,1724324094949,-200.0,0.00040673,14]
[335553054,1724324094976,-88935.65394599,0.00040673,2]
[335553055,1724324095001,-300.0,0.00040673,2]
[335553056,1724324095027,-790.46227914,0.00040673,2]
[335553057,1724324095053,-512.3322925,0.00040673,2]
[335553058,1724324095079,-289.98243215,0.00040673,2]
[335553059,1724324095105,-4135.64089838,0.00040673,2]
[335553060,1724324095132,-319.26461943,0.00040673,2]
[335553061,1724324095162,-284.86872531,0.00040673,2]
[335553062,1724324095525,-4106.59474383,0.00040673,2]
[335553063,1724324095553,-10059.3933291,0.00040673,2]
[335553064,1724324095583,-1104.99527875,0.00040673,2]
[335553065,1724324095610,-153.78561183,0.00040673,2]
[335553066,1724324095639,-18937.39490449,0.00040673,2]
[335553067,1724324095667,-1146.16032162,0.00040673,2]
[335553068,1724324095693,-775.96962264,0.00040673,2]
[335553069,1724324095719,-2006.9472699,0.00040673,2]
[335553070,1724324095744,-1237.39691804,0.00040673,2]
[335553071,1724324095791,-435.71784614,0.00040673,2]
[335553072,1724324095823,-222.56514521,0.00040673,2]
[335553073,1724324095852,-10017.75585151,0.00040673,2]
[335553074,1724324095878,-3634.25241125,0.00040673,2]
[335553075,1724324095906,-3046.93700318,0.00040673,2]
[335553076,1724324095931,-10388.78362487,0.00040673,2]
[335553077,1724324100134,-103490.60048032,0.00040673,2]
[335553078,1724324100161,-250000.0,0.00040673,60]
[335553079,1724324100187,-1015.08165618,0.00040673,2]
[335553080,1724324100212,-39290.9126266,0.00040673,2]
[335553081,1724324100238,-901.5755496,0.00040673,2]
[335553082,1724324100274,-72997.35796644,0.00040673,30]
[335553083,1724324100303,-163.90210563,0.00040673,30]
[335553084,1724324100329,-240.82074905,0.00040673,120]
[335553085,1724324100356,-5000.0,0.00040673,106]
[335553086,1724324100382,-151.98991407,0.00040673,120]
[335553087,1724324100408,-183.68601052,0.00040673,120]
[335553088,1724324100432,-4165.92080843,0.00040673,60]
[335553089,1724324100457,-5000.0,0.00040673,120]
[335553090,1724324100481,-5000.0,0.00040673,120]
[335553091,1724324100505,-5000.0,0.00040673,120]
[335553092,1724324100540,-5000.0,0.00040673,120]
[335553093,1724324100563,-5000.0,0.00040673,120]
[335553094,1724324100587,-12381.98612483,0.00040673,120]
[335553095,1724324100612,-1567.69881814,0.00040673,120]
[335553096,1724324100636,-32797.53784641,0.00040673,120]
[335553097,1724324100661,-168.93037053,0.00040673,2]
[335553098,1724324100685,-205.72000103,0.00040673,7]
[335553099,1724324100711,-5820.59969089,0.00040673,120]
[335553100,1724324100738,-9817.0,0.00040673,21]
[335553101,1724324100763,-5000.0,0.00040673,120]
[335553102,1724324100794,-5000.0,0.00040673,120]
[335553103,1724324100818,-5000.0,0.00040673,120]
[335553104,1724324100843,-5000.0,0.00040673,120]
[335553105,1724324100868,-5000.0,0.00040673,120]
[335553106,1724324100893,-5000.0,0.00040673,120]
[335553107,1724324100918,-5000.0,0.00040673,120]
[335553108,1724324100943,-5000.0,0.00040673,120]
[335553109,1724324100969,-5000.0,0.00040673,120]
[335553110,1724324100994,-5000.0,0.00040673,120]
[335553111,1724324101022,-5000.0,0.00040673,120]
[335553112,1724324101046,-5000.0,0.00040673,120]
[335553113,1724324101071,-5000.0,0.00040673,120]
[335553114,1724324101096,-5000.0,0.00040673,120]
[335553115,1724324101120,-6426.00080276,0.00040673,2]
[335553116,1724324101144,-43283.68593448,0.00040673,120]
[335553117,1724324101168,-513.51085678,0.00040673,2]
[335553118,1724324101191,-659.0,0.00040673,30]
[335553119,1724324101216,-213756.48168731,0.00040673,120]
[335553121,1724324178534,379.0,0.0002061,120]
[335553131,1724324221153,-809.21,0.00018914,3]
[335553132,1724324221179,-161.84,0.00018924,3]
[335553133,1724324221205,-1000.0,0.00019,19]
[335553134,1724324221273,-52146.7584456,0.00019726,9]
[335553135,1724324221303,-500.0,0.00019726,7]
[335553136,1724324221330,-500.0,0.00019726,7]
[335553137,1724324221357,-527.17188589,0.00019726,7]
[335553138,1724324221389,-500.0,0.00019726,7]
[335553139,1724324221416,-500.0,0.00019726,7]
[335553140,1724324221443,-500.0,0.00019726,7]
[335553141,1724324221469,-500.0,0.00019726,7]
[335553142,1724324221494,-500.0,0.00019726,7]
[335553143,1724324221519,-500.0,0.00019726,7]
[335553144,1724324221724,-500.0,0.00019726,7]
[335553145,1724324221751,-500.0,0.00019726,7]
[335553146,1724324221775,-500.0,0.00019726,7]
[335553147,1724324221799,-500.0,0.00019726,7]
[335553148,1724324221824,-500.0,0.00019726,7]
[335553149,1724324221851,-500.0,0.00019726,7]
[335553150,1724324221879,-607.0806403,0.00019726,7]
[335553151,1724324221904,-500.0,0.00019726,7]
[335553152,1724324221929,-500.0,0.00019726,7]
[335553153,1724324221955,-504.76116145,0.00019726,7]
[335553154,1724324221979,-508.06208762,0.00019726,7]
[335553155,1724324222005,-500.0,0.00019726,7]
[335553156,1724324222030,-500.0,0.00019726,7]
[335553157,1724324222057,-500.0,0.00019726,7]
[335553158,1724324222082,-500.0,0.00019726,7]
[335553159,1724324222107,-500.0,0.00019726,7]
[335553160,1724324222132,-500.0,0.00019726,7]
[335553161,1724324222158,-500.0,0.00019726,7]
[335553162,1724324222182,-500.0,0.00019726,7]
[335553163,1724324222207,-528.44527536,0.00019726,7]
[335553164,1724324222232,-500.0,0.00019726,7]
[335553165,1724324222258,-500.0,0.00019726,7]
[335553166,1724324222283,-500.0,0.00019726,7]
[335553167,1724324222314,-500.0,0.00019726,7]
[335553168,1724324222340,-676.95,0.00019726,7]
[335553169,1724324222366,-500.0,0.00019726,7]
[335553170,1724324222394,-500.0,0.00019726,7]
[335553171,1724324222419,-500.0,0.00019726,7]
[335553172,1724324222443,-430.11677474,0.00019726,7]
[335553173,1724324222468,-500.0,0.00019726,7]
[335553174,1724324222492,-500.0,0.00019726,7]
[335553175,1724324222516,-500.0,0.00019726,7]
[335553176,1724324222541,-500.0,0.00019726,7]
[335553177,1724324222565,-500.0,0.00019726,7]
[335553178,1724324222607,-500.0,0.00019726,7]
[335553179,1724324222635,-626.83077955,0.00019726,7]
[335553180,1724324222662,-500.0,0.00019726,7]
[335553181,1724324222688,-500.0,0.00019726,7]
[335553182,1724324222715,-500.0,0.00019726,7]
[335553183,1724324222741,-500.0,0.00019726,7]
[335553184,1724324222768,-299.55939735,0.00019726,7]
[335553185,1724324222796,-500.0,0.00019726,7]
[335553186,1724324222822,-500.0,0.00019726,7]
[335553187,1724324222849,-500.0,0.00019726,7]
[335553188,1724324222875,-500.0,0.00019726,7]
[335553189,1724324222901,-897.49,0.00019726,7]
[335553190,1724324222928,-500.0,0.00019726,7]
[335553191,1724324222953,-500.0,0.00019726,7]
[335553192,1724324222980,-500.0,0.00019726,7]
[335553193,1724324223007,-500.0,0.00019726,7]
[335553194,1724324223035,-500.0,0.00019726,7]
[335553195,1724324223063,-500.0,0.00019726,7]
[335553196,1724324223092,-500.0,0.00019726,7]
[335553197,1724324223121,-500.0,0.00019726,7]
[335553198,1724324223148,-500.0,0.00019726,7]
[335553199,1724324223176,-500.0,0.00019726,7]
[335553200,1724324223205,-500.0,0.00019726,7]
[335553201,1724324223233,-915.75,0.00019726,7]
[335553202,1724324223260,-536.56,0.00019726,7]
[335553203,1724324223299,-500.0,0.00019726,7]
[335553204,1724324223331,-522.49,0.00019726,7]
[335553205,1724324223362,-500.0,0.00019726,7]
[335553206,1724324223394,-500.0,0.00019726,7]
[335553207,1724324223425,-500.0,0.00019726,7]
[335553208,1724324223454,-890.6,0.00019726,7]
[335553209,1724324223483,-500.0,0.00019726,7]
[335553210,1724324223513,-500.0,0.00019726,7]
[335553211,1724324223541,-500.0,0.00019726,7]
[335553212,1724324223569,-500.0,0.00019726,7]
[335553213,1724324223599,-500.0,0.00019726,7]
[335553214,1724324223627,-500.0,0.00019726,7]
[335553215,1724324223655,-500.0,0.00019726,7]
[335553216,1724324223684,-500.0,0.00019726,7]
[335553217,1724324223711,-500.0,0.00019726,7]
[335553218,1724324223739,-500.0,0.00019726,7]
[335553219,1724324223766,-500.0,0.00019726,7]
[335553220,1724324223793,-500.0,0.00019726,7]
[335553221,1724324223820,-500.0,0.00019726,7]
[335553222,1724324223854,-500.0,0.00019726,7]
[335553223,1724324223885,-1411.08,0.00019726,7]
[335553224,1724324223912,-500.0,0.00019726,7]
[335553225,1724324223940,-500.0,0.00019726,7]
[335553226,1724324223969,-500.0,0.00019726,7]
[335553227,1724324223995,-500.0,0.00019726,7]
[335553228,1724324224023,-500.0,0.00019726,7]
[335553229,1724324224050,-500.0,0.00019726,7]
[335553230,1724324224077,-500.0,0.00019726,7]
[335553231,1724324224103,-249.7347571,0.00019726,7]
[335553232,1724324224133,-500.0,0.00019726,7]
[335553233,1724324224161,-1567.48,0.00019726,7]
[335553234,1724324224188,-500.0,0.00019726,7]
[335553235,1724324224215,-500.0,0.00019726,7]
[335553236,1724324224242,-795.06,0.00019726,7]
[335553237,1724324224269,-500.0,0.00019726,7]
[335553238,1724324224300,-500.0,0.00019726,7]
[335553239,1724324224327,-500.0,0.00019726,7]
[335553240,1724324224358,-500.0,0.00019726,7]
[335553241,1724324224393,-500.0,0.00019726,7]
[335553242,1724324224422,-500.0,0.00019726,7]
[335553243,1724324224453,-509.65517573,0.00019726,7]
[335553244,1724324224484,-500.0,0.00019726,7]
[335553245,1724324224513,-500.0,0.00019726,7]
[335553246,1724324224541,-500.0,0.00019726,7]
[335553247,1724324224582,-558.34,0.00019726,7]
[335553248,1724324224618,-500.0,0.00019726,7]
[335553249,1724324224845,-500.0,0.00019726,7]
[335553250,1724324224884,-500.0,0.00019726,7]
[335553251,1724324224909,-500.0,0.00019726,7]
[335553252,1724324224937,-500.0,0.00019726,7]
[335553253,1724324224966,-500.0,0.00019726,7]
[335553254,1724324224991,-960.82,0.00019726,7]
[335553255,1724324225023,-606.16,0.00019726,7]
[335553256,1724324225049,-505.0,0.00019726,7]
[335553257,1724324225075,-507.88536247,0.00019726,7]
[335553258,1724324225101,-500.0,0.00019726,7]
[335553259,1724324225132,-509.84489193,0.00019726,7]
[335553260,1724324225158,-500.0,0.00019726,7]
[335553261,1724324225189,-500.0,0.00019726,7]
[335553262,1724324225216,-508.84375178,0.00019726,7]
[335553263,1724324225243,-500.0,0.00019726,7]
[335553264,1724324225271,-500.0,0.00019726,7]
[335553265,1724324225301,-500.0,0.00019726,7]
[335553266,1724324225329,-500.0,0.00019726,7]
[335553267,1724324225356,-506.23223471,0.00019726,7]
[335553268,1724324225386,-500.0,0.00019726,7]
[335553269,1724324225413,-1153.42,0.00019726,7]
[335553270,1724324225440,-500.0,0.00019726,7]
[335553271,1724324225468,-763.72,0.00019726,7]
[335553272,1724324225495,-500.0,0.00019726,7]
[335553273,1724324225521,-500.0,0.00019726,7]
[335553274,1724324225547,-500.0,0.00019726,7]
[335553275,1724324225573,-500.0,0.00019726,7]
[335553276,1724324225598,-500.0,0.00019726,7]
[335553277,1724324225624,-500.0,0.00019726,7]
[335553278,1724324225651,-500.0,0.00019726,7]
[335553279,1724324225677,-500.0,0.00019726,7]
[335553280,1724324225702,-500.0,0.00019726,7]
[335553281,1724324225733,-500.0,0.00019726,7]
[335553282,1724324225760,-500.0,0.00019726,7]
[335553283,1724324225787,-500.0,0.00019726,7]
[335553284,1724324225814,-500.0,0.00019726,7]
[335553285,1724324225841,-438.88398324,0.00019726,7]
[335553286,1724324225870,-500.0,0.00019726,7]
[335553287,1724324225896,-500.0,0.00019726,7]
[335553288,1724324225924,-500.0,0.00019726,7]
[335553289,1724324225952,-500.0,0.00019726,7]
[335553290,1724324225978,-500.0,0.00019726,7]
[335553291,1724324226004,-500.0,0.00019726,7]
[335553292,1724324226028,-500.0,0.00019726,7]
[335553293,1724324226054,-500.0,0.00019726,7]
[335553294,1724324226081,-500.0,0.00019726,7]
[335553295,1724324226105,-500.0,0.00019726,7]
[335553296,1724324226132,-500.0,0.00019726,7]
[335553297,1724324226158,-500.0,0.00019726,7]
[335553298,1724324226183,-500.0,0.00019726,7]
[335553299,1724324226208,-393.94120097,0.00019726,7]
[335553300,1724324226234,-500.0,0.00019726,7]
[335553301,1724324226259,-600.68,0.00019726,7]
[335553302,1724324226284,-534.87,0.00019726,7]
[335553303,1724324226313,-500.0,0.00019726,7]
[335553304,1724324226338,-500.0,0.00019726,7]
[335553305,1724324226365,-656.62,0.00019726,7]
[335553306,1724324226391,-500.0,0.00019726,7]
[335553307,1724324226416,-500.0,0.00019726,7]
[335553308,1724324226442,-500.0,0.00019726,7]